Cogmind - Beta 14 @@@ ROGUE MODE // 2025.03.01 @ 13:15:25 Player: Edited09 Result: Destroyed by as-83372 with Assembled Blade Performance ------------- Evolutions (0) 0 Regions Visited (4) 800 Robots Destroyed (26) 130 Value Destroyed (519) 519 Prototype IDs (1) 20 Alien Tech Used (0) 0 Bonus (293) 293 TOTAL SCORE: 1762 Bonus ------- High Alert Combat Kills 24 Aligned with FarCom 300 Friendly Fire -31 Cogmind --------- Core Integrity 0/250 Matter 241/300 Energy 99/100 System Corruption 6% Temperature Cool (9) Movement Walking (90) Location -9/Mines Parts ------- > --- POWER (1) -------- (None) > --- PROPULSION (2) --- Potential Leg > --- UTILITY (2) ------ Small Storage Unit Signal Interpreter > --- WEAPON (2) ------- Light Assault Rifle > --- INVENTORY (8) ---- Ion Engine Improved Ion Engine Improved Ion Engine Visual Processing Unit Medium Laser Peak State ------------ > --- POWER ------------ Improved Ion Engine > --- PROPULSION ------- Aluminum Leg Potential Leg > --- UTILITY ---------- Small Storage Unit Signal Interpreter > --- WEAPON ----------- Bore Cannon Grenade Launcher > --- INVENTORY -------- Ion Engine Light Ion Engine Improved Ion Engine Aluminum Leg Visual Processing Unit Medium Laser Light Assault Rifle Light Assault Rifle [Rating: 22] Favorites ----------- Power Light Ion Engine Engine Light Ion Engine Propulsion Aluminum Leg Leg Aluminum Leg Utility Small Storage Unit Storage Small Storage Unit Processor Signal Interpreter Weapon Grenade Launcher Ballistic Gun Assault Rifle Ballistic Cannon Bore Cannon Launcher Grenade Launcher Build | -11 -10 -10 -10 -9 ------- Run | Yrd Mat Min Exi Min Slots Evolved . | . . . . . Power . | . . . . . Propulsion . | . . . . . Utility . | . . . . . Weapon . | . . . . . Parts Attached 19 | 6 3 3 2 5 Power 4 | 1 . 1 . 2 Engine 4 | 1 . 1 . 2 Core . | . . . . . Reactor . | . . . . . Propulsion 5 | 2 1 . 1 1 Treads . | . . . . . Leg 5 | 2 1 . 1 1 Wheel . | . . . . . Hover . | . . . . . Flight . | . . . . . Utility 2 | 1 1 . . . Device . | . . . . . Storage 1 | 1 . . . . Processor 1 | . 1 . . . Hackware . | . . . . . Protection . | . . . . . Artifact . | . . . . . Weapon 8 | 2 1 2 1 2 Energy Gun . | . . . . . Energy Cannon . | . . . . . Ballistic Gun 5 | 2 . 1 . 2 Ballistic Cannon 1 | . . 1 . . Launcher 2 | . 1 . 1 . Special Weapon . | . . . . . Impact Weapon . | . . . . . Slashing Weapon . | . . . . . Piercing Weapon . | . . . . . Special Melee Weapon . | . . . . . Unidentified Prototypes 1 | . . . 1 . Parts Lost 6 | . . . 1 5 Power . | . . . . . Propulsion 2 | . . . . 2 Utility . | . . . . . Weapon 4 | . . . 1 3 Highest Loss Streak 5 | . . . 1 5 To Critical Strikes . | . . . . . Average Slot Usage (%) 98 | . 96 100 99 97 Engine 14 | . 14 14 14 14 Leg 27 | . 27 28 28 27 Storage 14 | . 14 14 14 14 Processor 13 | . 11 14 14 14 Ballistic Gun 7 | . 16 4 . 1 Ballistic Cannon 7 | . . 9 14 12 Launcher 13 | . 11 14 13 12 Peak Build Rating 22 | 6 7 11 20 22 Average Rating 10 | 4 6 9 15 20 On Entrance 8 | . 6 7 11 20 Naked Turns . | . . . . . Heaviest Build 24 | 13 15 20 20 24 Greatest Support 40 | 20 20 20 40 40 Greatest Overweight (x) 1 | . 1 . . . Average Overweight (x) . | . . . . . Largest Inventory Capacity 8 | 8 8 8 8 8 Average Capacity 7 | 7 8 8 8 8 Most Carried 8 | 2 8 8 8 8 Average Carried 7 | . 6 7 7 7 Final Capacity 8 | 8 8 8 8 8 Final Carried 8 | 2 8 8 7 5 Class Distribution -------------------- 100% | Mutant Dominant Class ---------------- Mutant | -10/Materials Mutant | -10/Mines Mutant | -10/Exiles Mutant | -9/Mines Resources | -11 -10 -10 -10 -9 ----------- Run | Yrd Mat Min Exi Min Matter Collected 749 | 259 277 89 . 124 Remotely . | . . . . . Salvage Created 463 | . 284 48 103 28 Parts 40 | . 23 11 6 . Haulers Intercepted . | . . . . . Recyclers Shooed 8 | . 8 . . . Parts Field Recycled . | . . . . . Retrieved Matter . | . . . . . Parts Self-Destructed . | . . . . . Prevented . | . . . . . Kills | -11 -10 -10 -10 -9 ------- Run | Yrd Mat Min Exi Min Combat Hostiles Destroyed 29 | . 13 6 4 6 Guns 9 | . 5 4 . . Cannons 2 | . . . 2 . AOE 18 | . 8 2 2 6 Classes Destroyed 7 | . 5 . 1 1 Recycler 1 | . 1 . . . Operator 1 | . 1 . . . Watcher 1 | . 1 . . . Swarmer 15 | . 8 6 1 . Grunt 7 | . 5 . 2 . Demolisher 1 | . . . 1 . Assembled 6 | . . . . 6 Best Kill Streak 6 | . 6 6 3 6 Combat Bots Only 6 | . 5 6 3 6 Max Kills in Single Turn 6 | . 3 2 2 6 Gunslinging . | . . . . . Exploded 6 | . 2 1 1 6 Melee . | . . . . . Uniques/NPCs Destroyed . | . . . . . Combat | -11 -10 -10 -10 -9 -------- Run | Yrd Mat Min Exi Min Hostile Shots Fired 139 | . 60 20 17 42 Missed 34 | . 17 4 5 8 Damage Taken 1357 | . 385 129 244 599 Core 259 | . 99 23 12 125 Absorbed by Shields . | . . . . . Regen/Repaired (Parts) 81 | . 81 . . . Core Remaining (%) 100 | 100 . . . . Volleys Fired 59 | . 33 13 7 6 Largest 2 | . 2 2 2 2 Hottest 87 | . 50 50 87 87 Shots Fired 89 | . 54 15 11 9 Gun 56 | . 40 13 . 3 Cannon 10 | . . . 7 3 Launcher 23 | . 14 2 4 3 Special . | . . . . . Kinetic 66 | . 40 13 7 6 Thermal . | . . . . . Explosive 23 | . 14 2 4 3 Electromagnetic . | . . . . . Robot Hit Streak 8 | . 8 2 2 4 Robot Miss Streak 4 | . 4 3 4 2 Penetration Max 1 | . . . 1 . Secondary Targets . | . . . . . Shots Hit Robots 35 | . 22 5 3 5 Core Hits 64 | . 27 6 5 26 Critical Kills 2 | . . . 2 . Critical Parts Destroyed 3 | . . . 2 1 Critical Strikes 6 | . . . 5 1 Destroy 6 | . . . 5 1 Melee Attacks . | . . . . . Impact . | . . . . . Slashing . | . . . . . Piercing . | . . . . . Sneak Attacks . | . . . . . Combat Hostiles . | . . . . . Follow-up Attacks . | . . . . . Damage Inflicted 2021 | . 1072 207 173 569 Guns 335 | . 241 74 . 20 Cannons 146 | . . . 132 14 Explosions 1540 | . 831 133 41 535 Melee . | . . . . . Ramming . | . . . . . Kinetic 481 | . 241 74 132 34 Thermal . | . . . . . Explosive 1540 | . 831 133 41 535 Electromagnetic . | . . . . . Impact . | . . . . . Slashing . | . . . . . Piercing . | . . . . . Highest Corruption 6 | . . . . 6 Average Corruption 4 | . . . . 4 Corruption Purged . | . . . . . Corruption Blocked . | . . . . . Effects 1 | . . . . 1 Message Errors 1 | . . . . 1 Overload Shots . | . . . . . Overflow Damage 17 | . 9 . . 8 Projectiles . | . . . . . Explosions 17 | . 9 . . 8 Melee . | . . . . . Knockbacks . | . . . . . Impact . | . . . . . Kinetic . | . . . . . Secondary . | . . . . . Self-Inflicted Damage 93 | . 25 . . 68 Shots 3 | . 1 . . 2 Rammed . | . . . . . Targets Rammed . | . . . . . Kicked . | . . . . . Crushed . | . . . . . Highest Temperature 174 | . 8 . 61 174 Average Temperature 51 | . 3 . 27 89 Received Heat Transfer 208 | . 48 . . 160 Siege Activations . | . . . . . Robots Corrupted . | . . . . . Combat Hostiles . | . . . . . Parts Fried . | . . . . . Impact Corruptions . | . . . . . Robots Melted . | . . . . . Combat Hostiles . | . . . . . Parts Melted . | . . . . . Heat Transferred . | . . . . . Parts Sabotaged . | . . . . . Parts Stolen . | . . . . . Parts Stripped . | . . . . . Power Chain Reactions . | . . . . . Alert | -11 -10 -10 -10 -9 ------- Run | Yrd Mat Min Exi Min Peak Influence 511 | . 511 306 . 15 Initial 121 | . . 121 . . Average 190 | . 291 166 . . Maximum Alert Level 2 | . 2 1 . . Low Security (%) 55 | 100 18 70 . 100 Level 1 32 | . 47 29 . . Level 2 12 | . 33 . . . Level 3 . | . . . . . Level 4 . | . . . . . Level 5 . | . . . . . High Security . | . . . . . Max Security . | . . . . . Squads Dispatched 1 | . 1 . . . Investigation . | . . . . . Extermination . | . . . . . Reinforcement 1 | . 1 . . . Assault . | . . . . . Garrison . | . . . . . Intercept . | . . . . . Searches Triggered . | . . . . . Construction Impeded . | . . . . . Haulers Reinforced . | . . . . . Active Scanning Responses . | . . . . . Cargo Convoy Interrupts . | . . . . . Stealth | -11 -10 -10 -10 -9 --------- Run | Yrd Mat Min Exi Min Distress Signals . | . . . . . Communications Jammed . | . . . . . Distress Signals . | . . . . . Times Spotted 45 | . 15 6 6 18 Peak Tracking Total 18 | . 6 5 8 18 Tactical Retreats 3 | . 1 1 1 . Traps | -11 -10 -10 -10 -9 ------- Run | Yrd Mat Min Exi Min Traps Triggered . | . . . . . Indirectly . | . . . . . Trap Hack Attempts . | . . . . . Triggered . | . . . . . Disarmed . | . . . . . Reprogrammed . | . . . . . Reused . | . . . . . Traps Extracted . | . . . . . Installed . | . . . . . Triggered . | . . . . . Machines | -11 -10 -10 -10 -9 ---------- Run | Yrd Mat Min Exi Min Machines Disabled 6 | . 4 . 2 . Max in Single Turn 2 | . 2 . 1 . Machines Repaired . | . . . . . Machines Dismantled . | . . . . . Machines Sabotaged . | . . . . . Overloaded Fab Kills . | . . . . . Hacking | -11 -10 -10 -10 -9 --------- Run | Yrd Mat Min Exi Min Machines Accessed 2 | . 2 . . . Terminals 1 | . 1 . . . Fabricators . | . . . . . Repair Stations 1 | . 1 . . . Recycling Units . | . . . . . Scanalyzers . | . . . . . Garrison Access . | . . . . . Total Hacks 5 | . 5 . . . Successful 3 | . 3 . . . Failed 2 | . 2 . . . Catastrophic 1 | . 1 . . . Database Lockouts . | . . . . . Manual 1 | . . . 1 . Terminals 2 | . 2 . . . Fabricators . | . . . . . Repair Stations 3 | . 3 . . . Recycling Units . | . . . . . Scanalyzers . | . . . . . Garrison Access . | . . . . . Terminal Hacks 1 | . 1 . . . Record 1 | . 1 . . . Fabricator Hacks . | . . . . . Repair Station Hacks 2 | . 2 . . . Scan Component 1 | . 1 . . . Repair 1 | . 1 . . . Recycling Unit Hacks . | . . . . . Scanalyzer . | . . . . . Garrison Access Hacks . | . . . . . Unauthorized Hacks . | . . . . . Terminals . | . . . . . Fabricators . | . . . . . Repair Stations . | . . . . . Recycling Units . | . . . . . Scanalyzers . | . . . . . Garrison Access . | . . . . . Data Cores Recovered . | . . . . . Used . | . . . . . Hacking Detections 1 | . 1 . . . Full Trace Events . | . . . . . Feedback Events . | . . . . . Feedback Blocked . | . . . . . Robot Schematics Acquired . | . . . . . Robots Built . | . . . . . Authchips . | . . . . . Time . | . . . . . Total Robot Build Rating . | . . . . . Part Schematics Acquired . | . . . . . Parts Built . | . . . . . Authchips . | . . . . . Time . | . . . . . Total Part Build Rating . | . . . . . Parts Repaired 1 | . 1 . . . Time 26 | . 26 . . . Parts Recycled . | . . . . . Recycled Matter . | . . . . . Retrieved Matter . | . . . . . Retrieved Components . | . . . . . Parts Scanalyzed . | . . . . . Part Schematics Acquired . | . . . . . Parts Damaged . | . . . . . Bothacking | -11 -10 -10 -10 -9 ------------ Run | Yrd Mat Min Exi Min Used RIF Installer . | . . . . . Robots Hacked . | . . . . . Non-combat . | . . . . . Combat . | . . . . . Robot Hacks Applied . | . . . . . Relay Couplers Released . | . . . . . Fabnet Peak Effective % . | . . . . . Robots Rewired . | . . . . . Allies Hacked . | . . . . . Hacks Repelled . | . . . . . Allies | -11 -10 -10 -10 -9 -------- Run | Yrd Mat Min Exi Min Total Allies . | . . . . . Largest Group . | . . . . . Highest-Rated Group . | . . . . . Highest-Rated Ally . | . . . . . Total Orders . | . . . . . Ally Attacks . | . . . . . Total Damage . | . . . . . Kills . | . . . . . Allies Corrupted . | . . . . . Allies Melted . | . . . . . Intel | -11 -10 -10 -10 -9 ------- Run | Yrd Mat Min Exi Min Robot Analysis Total . | . . . . . Derelict Logs Recovered 1 | . . 1 . . Drone Launches . | . . . . . Drone Recoveries . | . . . . . Exploration | -11 -10 -10 -10 -9 ------------- Run | Yrd Mat Min Exi Min Turns Passed 2013 | 73 592 740 461 147 Spaces Moved 1559 | 57 403 587 391 121 Core 8 | 8 . . . . Treads . | . . . . . Legs 1551 | 49 403 587 391 121 Wheels . | . . . . . Hover . | . . . . . Flight . | . . . . . Fastest Speed 50 | 50 120 120 105 90 Average Speed 117 | 110 122 120 112 104 Slowest Speed 190 | 120 190 120 120 105 Overloaded Moves . | . . . . . Propulsion Burnouts . | . . . . . Robots Hopped . | . . . . . Cave-ins Triggered . | . . . . . Exploration Rate (%) 45 | 4 59 76 63 23 Regions Visited 4 Branch Regions 3 Pre-discovered Areas . | . . . . . Known Exits Taken 3 | . 1 1 1 . Unknown Exits Taken 1 | 1 . . . . Scrap Searched 1 | . . . . 1 Spaces Dug . | . . . . . Terrain Destroyed 97 | . 56 15 7 19 Melee . | . . . . . Projectile 4 | . . . 3 1 AOE 93 | . 56 15 4 18 Terrain Rammed . | . . . . . Walls Destroyed . | . . . . . Machines Disabled . | . . . . . Actions | -11 -10 -10 -10 -9 --------- Run | Yrd Mat Min Exi Min Total 1656 | 64 446 610 401 135 Wait . | . . . . . Move 1555 | 56 402 586 390 121 Hop . | . . . . . Pick Up 14 | 2 7 3 1 1 Fast Attach 8 | 6 2 . . . Attach 4 | . . . 1 3 Detach . | . . . . . Swap 7 | . 1 3 1 2 Drop 9 | . 1 5 1 2 Fire 59 | . 33 13 7 6 Melee . | . . . . . Ram . | . . . . . Kick . | . . . . . Crush . | . . . . . Escape Stasis . | . . . . . Rewire . | . . . . . Trap . | . . . . . Miscellaneous . | . . . . . Route ------- -11/Scrapyard -10/Materials (discovered 2 exits: *Mat / *Min) -10/Mines (discovered 2 exits: *Exi / *Sub) -10/Exiles (discovered 2 exits: *Min x2) -9/Mines History --------- Turn | Location | Event 4 | -11/Scrapyard | Discovered new exit (range 16) 74 | -11/Scrapyard | Entered Materials 308 | -10/Materials | Discovered new exit (range 15) 318 | -10/Materials | Build established: Mutant 392 | -10/Materials | Repaired Aluminum Leg 423 | -10/Materials | Identified exit to Materials 627 | -10/Materials | Discovered new exit (range 16) 662 | -10/Materials | Identified exit to Mines 666 | -10/Materials | Entered Mines 692 | -10/Mines | Found a hidden stash of uninstalled traps 741 | -10/Mines | A weapon hastily lodged in a ceiling crevice suddenly fell to the ground 1007 | -10/Mines | Learned Materials garrison access intel 1176 | -10/Mines | Discovered new exit (range 10) 1194 | -10/Mines | Identified exit to Subcaves 1398 | -10/Mines | Deemed a non-threat by the Exiles lab entrance 1399 | -10/Mines | Discovered new exit (range 5) 1404 | -10/Mines | Identified exit to Exiles 1406 | -10/Mines | Entered Exiles 1435 | -10/Exiles | Discovered new exit (range 15) 1453 | -10/Exiles | Identified exit to Mines 1487 | -10/Exiles | Met 8R-AWN 1512 | -10/Exiles | Met EX-HEX 1564 | -10/Exiles | Met EX-BIN 1589 | -10/Exiles | Aligned with FarCom system 1590 | -10/Exiles | Given EX-Vault access code 1636 | -10/Exiles | Opened EX-Vault 1642 | -10/Exiles | Found Prototype Leg 1643 | -10/Exiles | Identified Potential Leg 1665 | -10/Exiles | Warned to stay clear of 0b10 Research branches 1682 | -10/Exiles | Exiles lab attacked by MAIN.C 1765 | -10/Exiles | Core integrity fell below 50% 1779 | -10/Exiles | Lost 7 allies 1846 | -10/Exiles | Discovered exit to Mines (range 15) 1867 | -10/Exiles | Left Exiles lab with Potential Leg 1867 | -10/Exiles | Entered Mines 1885 | -9/Mines | Found DCF Scrap (15 items) 1978 | -9/Mines | Assembled infested the area 1983 | -9/Mines | Assisted by a Guerilla fighting off Assembled 2009 | -9/Mines | Core integrity fell below 20% 2014 | -9/Mines | Destroyed by as-83372 with Assembled Blade Last Messages --------------- as-05661 destroyed. as-45368 destroyed. as-13407 destroyed. [Achievement: Quick And Dirty] as-76299 destroyed. Bore Cannon destroyed. Grenade Launcher destroyed. Knocked back. XE-4FL(h) system corrupted by crushing effect. T-07 Excavator destroyed. XE-4FL(h) system terminally corrupted. Aluminum Leg destroyed. J5-HVA knocked back. as-06186 destroyed. Lgt. Assault Rifle destroyed. System corrupted by crushing effect (+3). VQXVOSX=C SNSY5 EZ258 RU%9 Aluminum Leg destroyed. System corrupted by crushing effect (+3). Imp. Ion Engine severed. Map ----- +----------------------------------------------------+ | ???????????????????????????????????????? | | ???????????????????????????????????????? | | ???????????????????????????????????????? | | ???????????????????????????????????????? | | ???????????????????????????????????????? | | ???????????????????????????????????????? | | ???????????????????????????????????????? | | ???????????????????????????????????????? | | ????????????????????? ??????????????? | | ????????????????????? ??????????????? | | ????????????????????? ??????????????? | | ????????????????????? ??????????????? | | ????????????????????? ??????????????? | | ?????????????????????# #??????????????? | | #???????????????????## #?##???????????? | | ##?????????????????## ## #???????????? | | ###??????????????## ;"#????????????? | | ##????????????## ##????????????? | | ##??????????## ##???????????? | | ##?????????# z% < ##??????????? | | """ #???????### % a ##?????????? | | """ ##??????# % a !%#?????????? | | """ ##?????# % % !#?????????? | | #######== % aa #??????????? | | #### =%%! ##aaa #??????????? | | ###??## ! ###@a #??????????? | | ??????# ### ####?## ##??????????? | | ??????## ##?#######??????##???????????? | | ???????####????????????????????????????? | | ???????????????????????????????????????? | | ???????????????????????????????????????? | | ???????????????????????????????????????? | | ???????????????????????????????????????? | | | | | | | | | | | | | | | | | | | | | | | | | | | | | | | | | | | +----------------------------------------------------+ Best States ------------- Heat Dissipation 25 Energy Generation 12 Energy Capacity 265 Matter Stores 300 Matter Capacity 300 Sight Range 16 Terrain Scan Density 10 Evasion (%) 55 Item Schematics ----------------- None Robot Schematics ------------------ None Fabricated ------------ Nothing Alien Tech Used ----------------- None Achievements -------------- Quick And Dirty Challenges ------------ None Game ------ Seed TimingShieldRecalibrator Manual? 0 Play Time 00:17:59 Cumulative 4.5 hours Start 2025.03.01 @ 12:48:26 End 2025.03.01 @ 13:15:25 Sessions 1 Manual Loads 0 Difficulty Rogue Special Mode None Game No. 13 Rogue 13 Adventurer 0 Explorer 0 Win Type - Total 0 Types 0/0/0/0/0/0/0/0/0 Lore% 7 Gallery% 12 Achievement% 10 Wizard Run 0 Options --------- Layout 0 ASCII 0 Keyboard 0 Movement Arrows Keybinds 0 Fullscreen 1 Font 24/Smallcaps Map View 76x50 Zoom Use 0% Tactical HUD 0 Map Filters NONE Filters NONE Steam 1 RUN: bfdb3eed-a6ef-4999-88ec-0c69c4418677